bitfinex/quotes_SOLUSD_20241107
["timestamp","ask_amount","ask_price","bid_price","bid_amount"]
[1730954218874,7.75976765,189.97,189.91,7.75976765]
[1730954219200,7.75976765,189.97,189.92,2.10611889]
[1730954219386,7.75976765,189.97,189.93,2.10611889]
[1730954219697,7.75976765,189.97,189.91,7.75976765]
[1730954219904,7.75976765,189.97,189.92,2.10611889]
[1730954220198,7.75976765,189.97,189.93,2.10611889]
[1730954220399,7.75976765,189.97,189.91,7.75976765]
[1730954220697,7.75976765,189.97,189.92,2.10611889]
[1730954220900,7.75976765,189.95,189.93,2.10611889]
[1730954221084,41.85372824,190.0,189.91,0.83111899]
[1730954221085,7.75976765,189.94,189.91,0.83111899]
[1730954221293,14.06566765,189.92,189.86,5.23128738]
[1730954221487,6.3059,189.92,189.88,0.83084125]
[1730954221796,6.3059,189.92,189.89,4.73914017]
[1730954222097,5.2656,189.91,189.9,2.10628452]
[1730954222306,13.02536765,189.91,189.9,2.10628452]
[1730954223997,13.02536765,189.91,189.77,0.12549]
[1730954224188,7.75976765,189.87,189.81,12.9910695]
[1730954224505,7.75976765,189.88,189.82,12.49940149]
[1730954224706,7.75976765,189.88,189.83,4.73963384]
[1730954224901,7.75976765,189.88,189.84,4.73963384]
[1730954225109,7.75976765,189.88,189.85,4.73963384]
[1730954225288,7.75976765,189.88,189.86,4.73963384]
[1730954225600,7.75976765,189.88,189.87,4.73963384]
[1730954226191,23.43556765,189.88,189.87,4.73963384]
[1730954226581,23.43556765,189.88,189.87,2.1065013]
[1730954226987,5.2667,189.87,189.79,7.75976765]
[1730954227294,7.75976765,189.84,189.8,2.10749493]
[1730954227498,7.75976765,189.84,189.76,0.83174105]
[1730954227505,7.75976765,189.81,189.75,0.83174105]
[1730954227708,23.43556765,189.8,189.76,4.74213946]
[1730954227992,7.75976765,189.78,189.77,4.74213946]
[1730954228209,7.75976765,189.79,189.77,2.10761754]
[1730954228411,7.75976765,189.79,189.75,2.63462021]
[1730954228616,23.43556765,189.8,189.76,2.10768851]
[1730954228917,23.43556765,189.8,189.77,2.10768851]
[1730954229117,23.43556765,189.8,189.75,2.63461005]
[1730954229412,23.43556765,189.8,189.76,2.10768877]
[1730954229625,23.43556765,189.8,189.77,2.1076884]
[1730954229914,23.43556765,189.8,189.74,7.75976765]
[1730954230093,5.45217968,189.83,189.77,7.75976765]
[1730954230291,5.45217968,189.83,189.79,7.75976765]
[1730954230691,5.45217968,189.83,189.78,7.75976765]
[1730954231305,5.45217968,189.83,189.79,7.75976765]
[1730954232391,5.45217968,189.83,189.77,23.776884]
[1730954232594,5.45217968,189.83,189.79,7.75976765]
[1730954232895,13.21194733,189.83,189.77,23.776884]
[1730954233220,7.75976765,189.82,189.76,7.75976765]
[1730954233419,13.21194733,189.83,189.76,7.75976765]
[1730954233594,5.45217968,189.83,189.78,7.75976765]
[1730954239011,5.45217968,189.83,189.75,2.10748801]
[1730954239208,5.45217968,189.83,189.78,7.75976765]
[1730954241796,5.45217968,189.83,189.77,7.75976765]
[1730954241997,13.21194733,189.83,189.77,7.75976765]
[1730954242515,7.75976765,189.82,189.75,2.63442804]
[1730954242726,5.45217968,189.83,189.75,2.63442804]
[1730954242727,7.75976765,189.81,189.76,2.10744262]
[1730954242891,7.75976765,189.81,189.77,2.10744262]
[1730954243096,7.75976765,189.81,189.75,7.75976765]
[1730954243400,7.75976765,189.81,189.76,2.1074666]
[1730954243717,7.75976765,189.82,189.77,2.1074666]
[1730954243921,7.75976765,189.82,189.76,7.75976765]
[1730954244223,7.75976765,189.82,189.77,9.86722841]
[1730954244402,7.75976765,189.82,189.77,7.75976765]
[1730954244808,5.45217968,189.83,189.78,7.75976765]
[1730954245717,5.45217968,189.83,189.79,7.75976765]
[1730954245925,5.45217968,189.83,189.81,7.75976765]
[1730954247599,5.45217968,189.83,189.8,7.75976765]
[1730954249009,5.45217968,189.83,189.81,7.75976765]
[1730954251828,15.8289,189.85,189.81,7.75976765]
[1730954252030,15.8289,189.85,189.76,2.75962898]
[1730954252031,15.8289,189.85,189.8,7.75976765]
[1730954252225,15.8289,189.85,189.82,7.75976765]
[1730954252729,15.8289,189.85,189.8,2.10731046]
[1730954253028,15.8289,189.85,189.78,10.39390663]
[1730954253327,15.8289,189.85,189.79,9.8669362]
[1730954253546,15.8289,189.85,189.8,7.75976765]
[1730954253701,7.75976765,189.82,189.77,4.74132719]
[1730954253904,7.75976765,189.82,189.78,2.10718821]
[1730954254111,7.75976765,189.82,189.76,7.75976765]
[1730954254310,7.75976765,189.82,189.77,2.10738643]
[1730954254499,7.75976765,189.82,189.76,7.75976765]
[1730954254711,7.75976765,189.82,189.77,2.10738716]
[1730954254913,7.75976765,189.82,189.76,7.75976765]
[1730954255112,7.75976765,189.82,189.77,2.10739303]
[1730954255403,7.75976765,189.82,189.76,7.75976765]
[1730954255607,7.75976765,189.83,189.77,2.10739303]
[1730954255811,7.75976765,189.83,189.76,7.75976765]
[1730954256030,7.75976765,189.83,189.77,2.10740438]
[1730954256201,7.75976765,189.83,189.76,7.75976765]
[1730954256400,7.75976765,189.83,189.77,9.8671724]
[1730954256632,7.75976765,189.83,189.77,7.75976765]
[1730954258318,7.75976765,189.82,189.76,7.75976765]
[1730954258524,7.75976765,189.82,189.77,2.10740417]
[1730954258829,7.75976765,189.82,189.76,7.75976765]
[1730954259028,21.0962,189.85,189.77,2.10739655]
[1730954259029,7.75976765,189.83,189.77,2.10739655]
[1730954259220,7.75976765,189.83,189.76,7.75976765]
[1730954259413,7.75976765,189.83,189.77,2.10740982]
[1730954259618,7.75976765,189.83,189.76,7.75976765]
[1730954259823,7.75976765,189.83,189.77,2.10740982]
[1730954260027,7.75976765,189.81,189.74,2.63424568]
[1730954260226,7.75976765,189.81,189.75,12.50143141]
[1730954260429,7.75976765,189.81,189.76,2.10741808]
[1730954260736,7.75976765,189.81,189.77,2.10741808]
[1730954260911,7.75976765,189.81,189.75,7.75976765]
[1730954261113,21.0962,189.85,189.76,2.10743367]
[1730954261114,7.75976765,189.8,189.76,2.10743367]
[1730954261337,7.75976765,189.8,189.74,7.75976765]
[1730954261525,7.75976765,189.8,189.75,2.10750168]
[1730954261719,7.75976765,189.8,189.76,2.10750168]
[1730954262037,7.75976765,189.8,189.74,7.75976765]
[1730954262230,7.75976765,189.8,189.75,2.10750098]
[1730954262425,7.75976765,189.8,189.74,7.75976765]
[1730954262615,7.75976765,189.8,189.76,2.10750135]
[1730954262818,7.75976765,189.8,189.74,7.75976765]
[1730954263020,7.75976765,189.8,189.75,9.8672606]
[1730954263324,7.75976765,189.8,189.76,2.10749295]
[1730954263632,5.45100179,189.82,189.77,7.75976765]
[1730954263934,13.21076944,189.82,189.77,7.75976765]
[1730954264128,13.21076944,189.82,189.76,9.86725791]
[1730954264328,13.21076944,189.82,189.76,7.75976765]
[1730954266241,13.21076944,189.82,189.75,7.75976765]
[1730954266413,13.21076944,189.82,189.76,2.10748496]
[1730954266614,13.21076944,189.82,189.75,7.75976765]
[1730954266835,13.21076944,189.82,189.76,2.10748496]
[1730954267039,13.21076944,189.82,189.75,7.75976765]
[1730954267334,13.21076944,189.82,189.76,2.10748691]
[1730954267533,13.21076944,189.82,189.74,5.21125416]
[1730954267743,13.21076944,189.82,189.76,7.75976765]
[1730954269740,13.21076944,189.82,189.76,9.86725224]
[1730954269922,13.21076944,189.82,189.76,7.75976765]
[1730954270325,13.21076944,189.82,189.76,9.86725224]
[1730954270519,13.21076944,189.82,189.76,7.75976765]
[1730954271137,13.21076944,189.82,189.76,9.86725224]
[1730954271338,5.45100179,189.82,189.76,7.75976765]
[1730954271537,7.75976765,189.81,189.75,7.75976765]
[1730954271931,7.75976765,189.81,189.76,2.10749026]
[1730954272233,7.75976765,189.81,189.75,7.75976765]
[1730954272740,5.45100179,189.82,189.75,7.75976765]
[1730954272932,7.75976765,189.81,189.75,7.75976765]
[1730954273442,7.75976765,189.81,189.76,2.10749222]
[1730954274249,7.75976765,189.81,189.75,7.75976765]
[1730954274443,7.75976765,189.81,189.76,2.10748588]
[1730954274630,7.75976765,189.81,189.75,7.75976765]
[1730954274830,7.75976765,189.81,189.76,2.10748572]
[1730954275155,7.75976765,189.81,189.77,2.10749226]
[1730954275439,7.75976765,189.81,189.75,7.75976765]
[1730954275643,7.75976765,189.81,189.76,2.10749263]
[1730954275847,7.75976765,189.81,189.77,2.10749263]
[1730954276060,7.75976765,189.81,189.75,7.75976765]
[1730954276225,7.75976765,189.81,189.76,4.74186594]
[1730954276424,7.75976765,189.81,189.77,2.10750066]
[1730954276626,7.75976765,189.81,189.78,2.10750066]
[1730954276922,5.45100179,189.82,189.73,0.81936353]
[1730954276923,44.002374,189.76,189.73,0.81936353]
[1730954277128,0.1,189.71,189.66,0.8222517]
[1730954277327,7.75976765,189.67,189.63,0.8222517]
[1730954277528,7.75976765,189.66,189.59,7.75976765]
[1730954277827,22.0746,189.7,189.62,0.82239909]
[1730954277828,7.75976765,189.67,189.62,0.82239909]
[1730954278035,7.75976765,189.67,189.61,0.82239909]
[1730954278230,7.75976765,189.62,189.61,0.82239909]
[1730954278454,0.1,189.67,189.59,0.82239909]
[1730954278455,7.75976765,189.63,189.59,0.82239909]
[1730954278753,7.75976765,189.63,189.53,0.82239909]
[1730954278754,6.1185,189.63,189.53,0.82239909]
[1730954278942,7.75976765,189.59,189.52,8.58216674]
[1730954279254,7.75976765,189.59,189.47,0.66258489]
[1730954279255,7.75976765,189.6,189.53,7.75976765]
[1730954279550,6.1185,189.63,189.57,7.75976765]
[1730954279926,7.75976765,189.61,189.55,7.75976765]
[1730954280332,7.75976765,189.61,189.5,0.82239909]
[1730954280654,7.75976765,189.6,189.53,7.75976765]
[1730954281253,7.75976765,189.6,189.54,7.75976765]
[1730954281554,6.1185,189.63,189.57,7.75976765]
[1730954281729,7.75976765,189.64,189.58,7.75976765]
[1730954282233,23.71586765,189.65,189.58,7.75976765]
[1730954282628,23.71586765,189.65,189.59,7.75976765]
[1730954282827,15.9561,189.65,189.59,7.75976765]
[1730954284151,15.9561,189.65,189.6,7.75976765]
[1730954286951,15.9561,189.65,189.59,7.75976765]
[1730954287254,15.9561,189.65,189.6,7.75976765]
[1730954287665,5.45404059,189.64,189.6,7.75976765]
[1730954290480,5.45404059,189.64,189.55,23.776884]
[1730954290481,5.45404059,189.64,189.61,7.75976765]
[1730954290652,7.75976765,189.68,189.61,7.75976765]
[1730954290974,5.45374573,189.65,189.61,7.75976765]
[1730954291156,7.75976765,189.68,189.61,7.75976765]
[1730954291358,5.45369273,189.67,189.61,7.75976765]
[1730954291961,7.75976765,189.64,189.59,2.10932397]
[1730954292272,7.75976765,189.64,189.58,7.75976765]
[1730954292472,7.75976765,189.65,189.59,7.75976765]
[1730954292973,7.75976765,189.64,189.57,9.86909162]
[1730954293164,7.75976765,189.64,189.58,2.10943329]
[1730954293361,7.75976765,189.64,189.57,7.75976765]
[1730954293668,7.75976765,189.64,189.58,2.10943312]
[1730954293851,7.75976765,189.64,189.58,2.10946803]
[1730954294059,7.75976765,189.64,189.58,9.86923568]
[1730954294270,7.75976765,189.64,189.58,7.75976765]
[1730954294660,7.75976765,189.64,189.55,26.41371903]
[1730954294661,23.71586765,189.62,189.55,2.63683503]
[1730954294854,23.71586765,189.62,189.56,9.86927078]
[1730954295174,23.71586765,189.62,189.57,2.10950313]
[1730954295377,23.71586765,189.62,189.58,2.10950313]
[1730954295570,23.71586765,189.62,189.57,2.10950313]
[1730954295757,23.71586765,189.62,189.58,2.10950313]
[1730954295959,23.71586765,189.62,189.57,2.10950313]
[1730954296165,15.9561,189.62,189.58,2.10950313]
[1730954297066,22.04899273,189.67,189.6,7.75976765]
[1730954297364,7.75976765,189.66,189.6,7.75976765]
[1730954297565,7.75976765,189.65,189.59,7.75976765]
[1730954298983,7.75976765,189.65,189.59,9.86917178]
[1730954299171,7.75976765,189.65,189.59,7.75976765]
[1730954299375,7.75976765,189.62,189.58,2.10940413]
[1730954299678,7.75976765,189.63,189.59,2.10940413]
[1730954299857,7.75976765,189.63,189.58,2.10940413]
[1730954300066,7.75976765,189.63,189.59,2.10940413]
[1730954300263,7.75976765,189.63,189.58,2.10940413]
[1730954300476,7.75976765,189.63,189.57,7.75976765]
[1730954300676,7.75976765,189.63,189.58,2.10943565]
[1730954300976,7.75976765,189.63,189.57,7.75976765]
[1730954301177,7.75976765,189.63,189.58,2.10943329]
[1730954301377,7.75976765,189.63,189.59,2.10943329]
[1730954301575,7.75976765,189.63,189.57,7.75976765]
[1730954301576,7.75976765,189.63,189.58,2.10943329]
[1730954301763,7.75976765,189.63,189.59,2.10943329]
[1730954301960,5.45474184,189.65,189.58,2.10943329]
[1730954302168,5.45474184,189.65,189.59,2.10943329]
[1730954302374,7.75976765,189.63,189.58,2.10943329]
[1730954302576,7.75976765,189.63,189.59,2.10943329]
[1730954302773,7.75976765,189.63,189.57,2.10943329]
[1730954302980,7.75976765,189.63,189.58,2.10943329]
[1730954303280,7.75976765,189.62,189.59,2.10943329]
[1730954303582,7.75976765,189.62,189.56,2.10943329]
[1730954303784,7.75976765,189.62,189.57,2.10943329]
[1730954303976,7.75976765,189.62,189.58,2.10943329]
[1730954304173,7.75976765,189.62,189.55,2.63679406]
[1730954304378,7.75976765,189.62,189.56,9.86923222]
[1730954304573,7.75976765,189.62,189.57,2.10946457]
[1730954304881,7.75976765,189.62,189.58,2.10946457]
[1730954305078,7.75976765,189.64,189.57,7.75976765]
[1730954305286,7.75976765,189.64,189.58,2.1094661]
[1730954305457,7.75976765,189.63,189.57,7.75976765]
[1730954305654,7.75976765,189.63,189.58,2.10946523]
[1730954305960,5.45474184,189.65,189.57,7.75976765]
[1730954306171,13.21450949,189.65,189.59,7.75976765]
[1730954306368,13.21450949,189.65,189.59,9.22607082]
[1730954306682,13.21450949,189.65,189.58,7.75976765]
[1730954306869,13.21450949,189.65,189.59,2.10941158]
[1730954307177,5.45474184,189.65,189.58,7.75976765]
[1730954307378,13.21450949,189.65,189.59,2.10931408]
[1730954307569,7.75976765,189.64,189.6,2.10931408]
[1730954307771,7.75976765,189.63,189.59,2.10931408]
[1730954307990,7.75976765,189.62,189.56,10.39659836]
[1730954308280,7.75976765,189.63,189.57,2.10937584]
[1730954308487,7.75976765,189.63,189.58,2.10937584]
[1730954308790,7.75976765,189.63,189.59,2.10937584]
[1730954308960,7.75976765,189.63,189.57,2.10937584]
[1730954309157,5.45474184,189.65,189.58,2.10937584]
[1730954309363,7.75976765,189.59,189.55,2.63683071]
[1730954309576,7.75976765,189.58,189.56,2.10946724]
[1730954309777,16.2835,189.6,189.53,2.63683071]
[1730954309778,7.75976765,189.59,189.53,2.63683071]
[1730954309983,7.75976765,189.59,189.54,2.10970594]
[1730954310182,16.2835,189.6,189.55,2.10970594]
[1730954310368,16.2835,189.6,189.56,2.1096992]
[1730954310565,16.2835,189.6,189.56,9.86946685]
[1730954310761,16.2835,189.6,189.54,23.776884]
[1730954310973,21.02474184,189.65,189.57,7.75976765]
[1730954311181,28.78450949,189.65,189.59,7.75976765]
[1730954312170,21.02474184,189.65,189.6,7.75976765]
[1730954312489,15.57,189.65,189.6,7.75976765]
[1730954312863,15.57,189.65,189.59,7.75976765]
[1730954313372,15.57,189.65,189.59,12.13328197]
[1730954314588,27.70328197,189.65,189.59,12.13328197]
[1730954314765,12.13328197,189.64,189.58,14.24270305]
[1730954315087,12.13328197,189.64,189.58,12.13328197]
[1730954315590,27.70328197,189.65,189.59,12.13328197]
[1730954316782,27.70328197,189.65,189.58,12.13328197]
[1730954316988,12.13328197,189.64,189.58,12.13328197]
[1730954317180,12.13328197,189.64,189.57,12.13328197]
[1730954318388,12.13328197,189.64,189.58,12.13328197]
[1730954319487,15.57,189.65,189.59,12.13328197]
[1730954321877,27.70328197,189.65,189.58,12.13328197]
[1730954322481,12.13328197,189.63,189.56,12.13328197]
[1730954322785,12.13328197,189.62,189.55,12.13328197]
[1730954322992,12.13328197,189.62,189.56,12.13328197]
[1730954324265,5.44491024,189.63,189.57,12.13328197]
[1730954324470,5.44491024,189.63,189.59,12.13328197]
[1730954325295,5.44491024,189.63,189.58,12.13328197]
[1730954325595,5.44491024,189.63,189.59,12.13328197]
[1730954327578,5.44491024,189.63,189.58,12.13328197]
[1730954328397,5.44491024,189.63,189.58,17.36593402]
[1730954329290,5.44491024,189.63,189.58,12.13328197]
[1730954330084,17.57819221,189.63,189.57,17.36593402]
[1730954330591,5.44491024,189.63,189.57,17.36593402]
[1730954331304,5.44491024,189.63,189.58,2.10943742]
[1730954331477,5.44491024,189.63,189.57,17.36593402]
[1730954331675,5.44491024,189.63,189.57,19.47537144]
[1730954331995,5.44491024,189.63,189.57,17.36593402]
[1730954332175,5.44491024,189.63,189.58,2.10943742]
[1730954332378,5.44491024,189.63,189.59,2.10943742]
[1730954332580,5.44491024,189.63,189.58,2.10943742]
[1730954332779,5.44491024,189.63,189.59,2.10943742]
[1730954333007,5.44491024,189.63,189.58,2.10943742]
[1730954333195,5.44491024,189.63,189.59,2.10943742]
[1730954333511,13.21194577,189.63,189.58,2.10943742]
[1730954333686,13.21194577,189.63,189.59,2.10943742]
[1730954333889,13.21194577,189.63,189.58,2.10943742]
[1730954334098,7.76703553,189.62,189.59,2.10943742]
[1730954334900,7.76703553,189.62,189.57,5.23115258]
[1730954335105,7.76703553,189.62,189.56,7.76703553]
[1730954335282,5.44491024,189.63,189.57,7.34117266]
[1730954335479,7.76703553,189.59,189.58,2.10950331]
[1730954336587,23.66973553,189.59,189.58,2.10950331]
[1730954337908,15.9027,189.59,189.58,2.10950331]
[1730954339405,19.85355408,189.62,189.58,2.10950331]
[1730954339593,13.20145408,189.62,189.59,2.10950331]
[1730954339793,13.20145408,189.62,189.6,2.10950331]
[1730954339992,5.43441855,189.62,189.61,2.10950331]
[1730954340217,13.20145408,189.62,189.56,7.76703553]
[1730954340510,13.20145408,189.62,189.61,2.10977729]
[1730954340709,13.20145408,189.62,189.61,2.10977892]
[1730954341290,5.43441855,189.62,189.61,2.10977892]
[1730954341512,16.4256,189.63,189.61,2.10977892]
[1730954341707,5.43465604,189.62,189.58,8.58344116]
[1730954341910,5.43465604,189.62,189.59,2.10973413]
[1730954342093,5.43465604,189.62,189.6,2.10973413]
[1730954342292,5.43465604,189.62,189.61,2.10973413]
[1730954342706,5.43465604,189.62,189.57,7.76703553]
[1730954342909,5.43465604,189.62,189.61,2.10973795]
[1730954344917,5.43465604,189.62,189.61,2.10974372]
[1730954347799,5.43465604,189.62,189.54,0.81658202]
[1730954347800,24.002374,189.61,189.54,0.81658202]
[1730954347999,7.76703553,189.55,189.49,5.22912257]
[1730954348200,7.76703553,189.51,189.49,5.22912257]
[1730954348436,7.76703553,189.51,189.48,5.22912257]
[1730954348601,7.76703553,189.52,189.48,5.22912257]
[1730954348918,7.76703553,189.52,189.47,5.81249067]
[1730954349127,7.76703553,189.51,189.47,0.5833681]
[1730954349721,7.76703553,189.52,189.47,0.5833681]
[1730954350108,16.1943,189.56,189.47,0.5833681]
[1730954350109,7.76703553,189.51,189.47,0.5833681]
[1730954351520,16.1943,189.56,189.47,0.5833681]
[1730954351707,7.76703553,189.51,189.47,0.5833681]
[1730954352310,5.43493504,189.54,189.47,0.5833681]
[1730954352505,7.76703553,189.51,189.47,0.5833681]
[1730954353726,7.76703553,189.5,189.47,0.5833681]
[1730954356202,7.76703553,189.49,189.47,0.5833681]
[1730954356508,7.76703553,189.48,189.47,0.5833681]
[1730954358122,5.43493504,189.54,189.47,0.5833681]
[1730954358308,7.76703553,189.51,189.47,0.5833681]
[1730954359102,7.76703553,189.5,189.47,0.5833681]
[1730954359427,7.76703553,189.49,189.47,0.5833681]
[1730954360821,7.76703553,189.48,189.47,0.5833681]
[1730954366922,0.1,189.46,189.38,2.11115349]
[1730954367121,0.1,189.46,189.36,0.80540132]
[1730954367122,7.76703553,189.39,189.36,2.11115349]
[1730954367346,7.76703553,189.38,189.32,7.76703553]
[1730954367641,7.76703553,189.38,189.33,2.11115349]
[1730954368036,7.76703553,189.38,189.32,9.87818902]
[1730954368234,7.76703553,189.37,189.31,2.11115349]
[1730954368442,15.553,189.41,189.32,9.87818902]
[1730954368632,7.76703553,189.39,189.33,7.76703553]
[1730954368836,15.553,189.41,189.36,7.76703553]
[1730954369450,27.71646076,189.41,189.35,12.16346076]
[1730954370650,27.71646076,189.41,189.34,12.16346076]
[1730954371561,12.16346076,189.39,189.33,12.16346076]
[1730954371848,12.16346076,189.39,189.32,12.16346076]
[1730954372030,12.16346076,189.39,189.32,14.27522373]
[1730954372349,12.16346076,189.38,189.32,12.16346076]
[1730954372548,12.16346076,189.38,189.32,14.27522373]
[1730954372756,12.16346076,189.38,189.32,12.16346076]
[1730954373537,12.16346076,189.38,189.31,2.11176297]
[1730954373731,12.16346076,189.38,189.32,12.16346076]
[1730954374342,12.16346076,189.37,189.31,12.16346076]
[1730954374537,12.16346076,189.37,189.3,2.11176297]
[1730954374742,12.16346076,189.37,189.31,14.27522373]
[1730954374940,12.16346076,189.37,189.31,12.16346076]
[1730954375456,12.16346076,189.37,189.31,14.27522373]
[1730954375639,12.16346076,189.33,189.29,2.11176297]
[1730954376545,12.16346076,189.33,189.28,0.5833681]
[1730954379245,12.16346076,189.32,189.28,0.5833681]
[1730954379445,12.16346076,189.3,189.28,0.5833681]
[1730954379752,12.16346076,189.31,189.28,0.5833681]
[1730954380239,12.16346076,189.33,189.28,0.5833681]
[1730954380441,28.27536076,189.34,189.28,12.74682886]
[1730954381463,16.1119,189.34,189.29,12.16346076]
[1730954382148,16.1119,189.34,189.28,0.5833681]
[1730954382149,28.27536076,189.34,189.28,12.74682886]
[1730954383440,12.16346076,189.33,189.28,0.5833681]
[1730954383644,36.04034476,189.31,189.28,0.5833681]
[1730954383849,12.16346076,189.29,189.28,0.5833681]
[1730954384157,12.16346076,189.31,189.28,0.5833681]
[1730954384566,12.16346076,189.29,189.28,0.5833681]
[1730954384761,12.16346076,189.3,189.28,0.5833681]
[1730954384933,16.1119,189.34,189.28,0.5833681]
[1730954385135,12.16346076,189.32,189.28,0.5833681]
[1730954388158,16.1119,189.34,189.28,0.5833681]
[1730954388862,12.16346076,189.32,189.28,0.5833681]
[1730954389063,16.1119,189.34,189.28,0.5833681]
[1730954389256,12.16346076,189.33,189.28,0.5833681]
[1730954389568,12.16346076,189.32,189.28,0.5833681]
[1730954391352,7.7931855,189.32,189.28,0.5833681]
[1730954391745,16.1119,189.34,189.28,0.5833681]
[1730954391746,7.7931855,189.31,189.28,0.5833681]
[1730954392146,7.7931855,189.3,189.28,0.5833681]
[1730954392342,16.1119,189.34,189.28,0.5833681]
[1730954392652,7.7931855,189.32,189.28,0.5833681]
[1730954395545,7.7931855,189.33,189.28,0.5833681]
[1730954399153,7.7931855,189.31,189.28,0.5833681]
[1730954399850,7.7931855,189.3,189.28,0.5833681]
[1730954400277,7.7931855,189.31,189.28,0.5833681]
[1730954402670,7.7931855,189.3,189.28,0.5833681]
[1730954404675,6.73351492,189.32,189.28,0.5833681]
[1730954404676,7.7931855,189.29,189.28,0.5833681]
[1730954405555,7.7931855,189.29,189.21,5.21165985]
[1730954405556,0.12549,189.28,189.21,5.21165985]
[1730954405754,0.12549,189.28,189.19,2.11318488]
[1730954405755,7.7931855,189.23,189.18,7.32484473]
[1730954405957,7.7931855,189.23,189.18,5.21165985]
[1730954406161,7.7931855,189.23,189.17,15.11803023]
[1730954406373,24.002374,189.28,189.16,7.32484473]
[1730954406565,7.7931855,189.22,189.17,7.7931855]
[1730954406970,7.7931855,189.22,189.16,7.7931855]
[1730954407262,5.3834,189.27,189.14,5.21165985]
[1730954407263,7.7931855,189.19,189.14,5.21165985]
[1730954407582,7.7931855,189.18,189.13,2.11318488]
[1730954407763,7.7931855,189.18,189.12,13.0135814]
[1730954407956,7.7931855,189.18,189.12,15.12676628]
[1730954408166,7.7931855,189.19,189.13,7.7931855]
[1730954409467,7.7931855,189.18,189.11,7.33426343]
[1730954409666,7.7931855,189.18,189.12,7.7931855]
[1730954409970,16.572,189.26,189.17,7.7931855]
[1730954410277,16.572,189.26,189.21,7.7931855]
[1730954410479,16.572,189.31,189.24,7.7931855]
[1730954410777,24.3651855,189.31,189.25,7.7931855]
[1730954410969,24.3651855,189.31,189.18,6.38881679]
[1730954410970,7.7931855,189.3,189.24,7.7931855]
[1730954412286,16.572,189.31,189.25,7.7931855]
[1730954412459,7.7931855,189.28,189.21,2.11420034]
[1730954412662,7.7931855,189.28,189.22,7.7931855]
[1730954413357,12.18106159,189.28,189.22,12.18106159]
[1730954413563,12.18106159,189.27,189.21,12.18106159]
[1730954413762,12.18106159,189.27,189.19,7.33426343]
[1730954414066,12.18106159,189.27,189.21,12.18106159]
[1730954414267,12.18106159,189.25,189.19,12.18106159]
[1730954414460,12.18106159,189.24,189.18,12.18106159]
[1730954414981,12.18106159,189.24,189.17,17.40112468]
[1730954415660,12.18106159,189.23,189.17,17.40112468]
[1730954416177,28.74526159,189.22,189.16,19.51532502]
[1730954416377,28.74526159,189.22,189.16,17.40112468]
[1730954416761,28.74526159,189.22,189.16,19.51532502]
[1730954416967,28.74526159,189.22,189.16,17.40112468]
[1730954417389,28.74526159,189.22,189.16,19.51532502]
[1730954417578,28.74526159,189.22,189.16,17.40112468]
[1730954417766,16.5642,189.22,189.16,17.40112468]
[1730954417972,16.5642,189.22,189.16,19.51532502]
[1730954418187,16.5642,189.22,189.16,12.18106159]
[1730954418393,16.5642,189.22,189.16,17.40209665]
[1730954418565,16.5642,189.22,189.17,12.18106159]
[1730954418894,16.3615,189.27,189.21,12.18106159]
[1730954419074,16.3615,189.27,189.24,12.18106159]
[1730954419393,17.6088479,189.3,189.24,12.18106159]
[1730954419681,12.18106159,189.28,189.19,2.11369759]
[1730954419872,12.18106159,189.28,189.21,12.18106159]
[1730954420079,12.18106159,189.28,189.22,12.18106159]
[1730954420285,12.18106159,189.29,189.22,12.18106159]
[1730954420482,12.18106159,189.28,189.22,12.18106159]
[1730954422681,12.18106159,189.28,189.19,2.11369759]
[1730954422988,12.18106159,189.28,189.21,12.18106159]
[1730954423211,12.18106159,189.24,189.19,2.11369759]
[1730954423365,12.18106159,189.24,189.18,12.18106159]
[1730954423692,12.18106159,189.25,189.18,12.18106159]
[1730954423990,12.18106159,189.28,189.21,12.18106159]
[1730954424368,17.60948975,189.28,189.21,12.18106159]
[1730954424567,12.18106159,189.27,189.21,12.18106159]
[1730954424766,12.18106159,189.27,189.2,12.18106159]
[1730954425184,12.18106159,189.26,189.19,12.18106159]
[1730954425402,12.18106159,189.25,189.19,12.18106159]
[1730954427390,12.18106159,189.26,189.19,12.18106159]
[1730954428898,12.18106159,189.25,189.19,12.18106159]
[1730954429082,12.18106159,189.22,189.17,2.11359137]
[1730954429288,12.18106159,189.22,189.16,10.45414346]
[1730954429289,12.18106159,189.22,189.16,22.63520505]
[1730954431076,12.18106159,189.23,189.17,12.18106159]
[1730954431780,12.18106159,189.24,189.18,12.18106159]
[1730954433597,12.18106159,189.24,189.17,12.18106159]
[1730954434184,12.18106159,189.2,189.16,10.45414346]
[1730954435687,12.18106159,189.2,189.13,12.18106159]
[1730954435889,12.18106159,189.18,189.12,12.18106159]
[1730954436102,12.18106159,189.19,189.13,12.18106159]
[1730954436909,12.18106159,189.18,189.11,2.11442898]
[1730954437104,12.18106159,189.18,189.12,12.18106159]
[1730954437313,12.18106159,189.19,189.13,12.18106159]
[1730954438792,0.12549,189.22,189.13,12.18106159]
[1730954438992,12.18106159,189.19,189.13,12.18106159]
[1730954441304,12.18106159,189.2,189.14,12.18106159]
[1730954441605,12.18106159,189.21,189.15,12.18106159]